[Event "Early-Titled-Tuesday-Blitz-January-23-2024"]
[Site "Chess.com"]
[Date "2024.01.23"]
[Round "6"]
[White "ViIIagra"]
[Black "vasblesk"]
[Result "1-0"]
[WhiteElo "2974"]
[BlackElo "2775"]
[TimeControl "180+1"]
[EndTime "9:06:32 PST"]
[Termination "ViIIagra won by resignation"]

1. g3 {[%clk 0:03:00.9]} 1... d5 {[%clk 0:02:58.4]} 2. Bg2 {[%clk 0:03:00.5]}
2... g6 {[%clk 0:02:57]} 3. f4 {[%clk 0:02:54.9]} 3... Bg7 {[%clk 0:02:56]} 4.
Nf3 {[%clk 0:02:55.5]} 4... Nf6 {[%clk 0:02:55.2]} 5. O-O {[%clk 0:02:55.7]}
5... O-O {[%clk 0:02:55.8]} 6. c3 {[%clk 0:02:50]} 6... c5 {[%clk 0:02:53.9]} 7.
d3 {[%clk 0:02:48.6]} 7... Nc6 {[%clk 0:02:51.4]} 8. Qc2 {[%clk 0:02:33.5]} 8...
Qc7 {[%clk 0:02:10.3]} 9. e4 {[%clk 0:02:33.2]} 9... dxe4 {[%clk 0:02:10]} 10.
dxe4 {[%clk 0:02:32.7]} 10... e5 {[%clk 0:02:10.6]} 11. Na3 {[%clk 0:02:25.5]}
11... Nd7 {[%clk 0:02:05.5]} 12. f5 {[%clk 0:02:23.9]} 12... Nf6 {[%clk
0:01:57]} 13. Nh4 {[%clk 0:02:07.4]} 13... Ne7 {[%clk 0:01:43]} 14. Nb5 {[%clk
0:02:03.6]} 14... Qb6 {[%clk 0:01:38.1]} 15. c4 {[%clk 0:02:02.9]} 15... Nc6
{[%clk 0:01:24.9]} 16. Nc3 {[%clk 0:02:02.3]} 16... Nd4 {[%clk 0:01:24.8]} 17.
Qd1 {[%clk 0:02:02.3]} 17... Qd6 {[%clk 0:01:12.1]} 18. g4 {[%clk 0:02:00.1]}
18... h6 {[%clk 0:01:02]} 19. h3 {[%clk 0:01:58.8]} 19... g5 {[%clk 0:01:00.6]}
20. Nf3 {[%clk 0:01:59.1]} 20... b6 {[%clk 0:00:35.8]} 21. Nxg5 {[%clk
0:01:44.8]} 21... hxg5 {[%clk 0:00:29.7]} 22. Bxg5 {[%clk 0:01:45.7]} 22... Nh7
{[%clk 0:00:26.1]} 23. Be3 {[%clk 0:01:37.8]} 23... Bf6 {[%clk 0:00:20.5]} 24.
Qd2 {[%clk 0:01:28.1]} 24... Qd8 {[%clk 0:00:19.5]} 25. Nd5 {[%clk 0:01:23.6]}
25... Bh4 {[%clk 0:00:15.6]} 26. f6 {[%clk 0:01:23.5]} 26... Nxf6 {[%clk
0:00:13.3]} 27. Bg5 {[%clk 0:00:59.2]} 27... Nxe4 {[%clk 0:00:12.5]} 28. Bxd8
{[%clk 0:00:59.6]} 28... Nxd2 {[%clk 0:00:12.2]} 29. Bxh4 {[%clk 0:00:59.8]}
29... Nxf1 {[%clk 0:00:12.5]} 30. Rxf1 {[%clk 0:00:54.8]} 30... Rb8 {[%clk
0:00:12.4]} 31. Ne7+ {[%clk 0:00:14.1]} 31... Kh7 {[%clk 0:00:11.6]} 32. Be4+
{[%clk 0:00:14.1]} 32... f5 {[%clk 0:00:12]} 33. gxf5 {[%clk 0:00:14.3]} 33...
Bb7 {[%clk 0:00:12.5]} 34. Nd5 {[%clk 0:00:13.6]} 34... Bxd5 {[%clk 0:00:12.6]}
35. cxd5 {[%clk 0:00:14.5]} 35... Ne2+ {[%clk 0:00:07.3]} 36. Kh2 {[%clk
0:00:14.7]} 36... Kh6 {[%clk 0:00:07.7]} 37. d6 {[%clk 0:00:13.9]} 37... Rh8
{[%clk 0:00:05.9]} 38. Bf6 {[%clk 0:00:13.1]} 38... Rhg8 {[%clk 0:00:06.2]} 39.
Be7 {[%clk 0:00:13]} 39... Nf4 {[%clk 0:00:05.7]} 40. f6 {[%clk 0:00:13.5]}
40... Rg5 {[%clk 0:00:04.7]} 41. f7 {[%clk 0:00:13.4]} 41... Rh5 {[%clk
0:00:01.9]} 42. Rxf4 {[%clk 0:00:11.5]} 42... exf4 {[%clk 0:00:01.4]} 43. f8=Q+
{[%clk 0:00:12.3]} 43... Rxf8 {[%clk 0:00:01.8]} 44. Bxf8+ {[%clk 0:00:13.2]}
44... Kg5 {[%clk 0:00:02.4]} 45. d7 {[%clk 0:00:14.1]} 1-0

[Event "Early-Titled-Tuesday-Blitz-January-23-2024"]
[Site "Chess.com"]
[Date "2024.01.23"]
[Round "6"]
[White "itsdsyr"]
[Black "Chernov_Mikhail"]
[Result "1-0"]
[WhiteElo "2252"]
[BlackElo "2335"]
[TimeControl "180+1"]
[EndTime "9:06:32 PST"]
[Termination "itsdsyr won on time"]

1. d4 {[%clk 0:03:00.8]} 1... Nf6 {[%clk 0:02:55.5]} 2. c4 {[%clk 0:03:00.5]}
2... e5 {[%clk 0:02:55.6]} 3. dxe5 {[%clk 0:02:59.7]} 3... Ng4 {[%clk
0:02:55.6]} 4. Bf4 {[%clk 0:02:58.1]} 4... Bb4+ {[%clk 0:02:54.5]} 5. Nd2 {[%clk
0:02:57.2]} 5... Nc6 {[%clk 0:02:53.8]} 6. Nf3 {[%clk 0:02:57]} 6... Qe7 {[%clk
0:02:53.1]} 7. a3 {[%clk 0:02:55.1]} 7... Ngxe5 {[%clk 0:02:52.7]} 8. Nxe5
{[%clk 0:02:54.2]} 8... Nxe5 {[%clk 0:02:51.5]} 9. e3 {[%clk 0:02:54]} 9...
Bxd2+ {[%clk 0:02:50]} 10. Qxd2 {[%clk 0:02:53.9]} 10... O-O {[%clk 0:02:44.4]}
11. Be2 {[%clk 0:02:53.4]} 11... a5 {[%clk 0:02:44.1]} 12. O-O {[%clk
0:02:52.5]} 12... Ra6 {[%clk 0:02:36.8]} 13. b4 {[%clk 0:02:43.8]} 13... axb4
{[%clk 0:02:25.5]} 14. axb4 {[%clk 0:02:44.7]} 14... Rg6 {[%clk 0:02:26.1]} 15.
Bg3 {[%clk 0:02:38.8]} 15... d6 {[%clk 0:02:17.4]} 16. Qd4 {[%clk 0:02:17]}
16... f5 {[%clk 0:02:13.4]} 17. c5 {[%clk 0:02:09]} 17... Ng4 {[%clk 0:01:26.6]}
18. cxd6 {[%clk 0:01:53.2]} 18... cxd6 {[%clk 0:01:27.5]} 19. Rfd1 {[%clk
0:01:48.6]} 19... Ne5 {[%clk 0:01:07.3]} 20. Rac1 {[%clk 0:01:39.6]} 20... Nc6
{[%clk 0:00:52.8]} 21. Qd2 {[%clk 0:01:17.9]} 21... Rd8 {[%clk 0:00:46.6]} 22.
b5 {[%clk 0:01:13.7]} 22... Ne5 {[%clk 0:00:40.5]} 23. Qa5 {[%clk 0:01:12.6]}
23... Rf8 {[%clk 0:00:36.5]} 24. Rc7 {[%clk 0:01:10.8]} 24... Qf6 {[%clk
0:00:34]} 25. Qc3 {[%clk 0:00:49.2]} 25... Be6 {[%clk 0:00:20.7]} 26. Rxd6
{[%clk 0:00:43.8]} 26... Ng4 {[%clk 0:00:20.8]} 27. Qxf6 {[%clk 0:00:41.6]}
27... Rgxf6 {[%clk 0:00:21.2]} 28. Rxb7 {[%clk 0:00:37.2]} 28... Rc8 {[%clk
0:00:18.8]} 29. Rd1 {[%clk 0:00:36]} 29... Rc2 {[%clk 0:00:15.8]} 30. Bf3 {[%clk
0:00:32.2]} 30... h5 {[%clk 0:00:13.2]} 31. h3 {[%clk 0:00:31.9]} 31... Nh6
{[%clk 0:00:10.6]} 32. Be5 {[%clk 0:00:29.1]} 32... Rf7 {[%clk 0:00:09.9]} 33.
Rb8+ {[%clk 0:00:19.5]} 33... Rf8 {[%clk 0:00:08.2]} 34. Rxf8+ {[%clk
0:00:18.2]} 34... Kxf8 {[%clk 0:00:09.1]} 35. Bxh5 {[%clk 0:00:17.4]} 35... g5
{[%clk 0:00:06.6]} 36. b6 {[%clk 0:00:16.5]} 36... Nf7 {[%clk 0:00:03.7]} 37. b7
{[%clk 0:00:14.2]} 1-0

[Event "Early-Titled-Tuesday-Blitz-January-23-2024"]
[Site "Chess.com"]
[Date "2024.01.23"]
[Round "6"]
[White "biostatistician"]
[Black "maciek_92"]
[Result "1-0"]
[WhiteElo "2614"]
[BlackElo "2820"]
[TimeControl "180+1"]
[EndTime "9:06:34 PST"]
[Termination "biostatistician won by resignation"]

1. d4 {[%clk 0:02:58.8]} 1... f5 {[%clk 0:02:59.2]} 2. Bg5 {[%clk 0:02:58.5]}
2... g6 {[%clk 0:02:57.5]} 3. Nd2 {[%clk 0:02:58]} 3... Bg7 {[%clk 0:02:53.9]}
4. e4 {[%clk 0:02:57.9]} 4... fxe4 {[%clk 0:02:50.7]} 5. Nxe4 {[%clk 0:02:58.8]}
5... d5 {[%clk 0:02:48.7]} 6. Nc5 {[%clk 0:02:58.4]} 6... b6 {[%clk 0:02:46.9]}
7. Nb3 {[%clk 0:02:58.3]} 7... c5 {[%clk 0:02:30.1]} 8. Nf3 {[%clk 0:02:56.1]}
8... Nf6 {[%clk 0:02:26.2]} 9. Bb5+ {[%clk 0:02:54.9]} 9... Bd7 {[%clk
0:02:26.1]} 10. a4 {[%clk 0:02:52.1]} 10... O-O {[%clk 0:02:24]} 11. O-O {[%clk
0:02:51.4]} 11... c4 {[%clk 0:02:20.7]} 12. Nbd2 {[%clk 0:02:50.4]} 12... Bg4
{[%clk 0:02:15.6]} 13. a5 {[%clk 0:02:39.8]} 13... a6 {[%clk 0:02:02.3]} 14.
axb6 {[%clk 0:02:39.5]} 14... Qxb6 {[%clk 0:02:02.9]} 15. Ba4 {[%clk 0:02:36.2]}
15... Ne4 {[%clk 0:01:44.9]} 16. Bxe7 {[%clk 0:02:29.3]} 16... Rf7 {[%clk
0:01:44.8]} 17. Ba3 {[%clk 0:01:45.5]} 17... Nc6 {[%clk 0:01:32.7]} 18. Bxc6
{[%clk 0:01:42.7]} 18... Qxc6 {[%clk 0:01:33.6]} 19. Nxe4 {[%clk 0:01:38.4]}
19... Bxf3 {[%clk 0:01:25.3]} 20. gxf3 {[%clk 0:01:35.8]} 20... dxe4 {[%clk
0:01:25.6]} 21. fxe4 {[%clk 0:01:35.5]} 21... Qxe4 {[%clk 0:01:22.8]} 22. c3
{[%clk 0:01:26.2]} 22... Rf5 {[%clk 0:01:22.5]} 23. f3 {[%clk 0:01:06.4]} 23...
Qe3+ {[%clk 0:01:20.8]} 24. Kg2 {[%clk 0:01:04.8]} 24... Rg5+ {[%clk 0:01:05.7]}
25. Kh1 {[%clk 0:01:04.4]} 25... Rh5 {[%clk 0:00:56]} 26. Qe1 {[%clk 0:01:01.3]}
26... Qf4 {[%clk 0:00:53.5]} 27. Qf2 {[%clk 0:01:00.8]} 27... Bf6 {[%clk
0:00:46.9]} 28. Rae1 {[%clk 0:00:59.5]} 28... Qc7 {[%clk 0:00:17.8]} 29. Re6
{[%clk 0:00:55.1]} 29... Bh4 {[%clk 0:00:16.8]} 30. Qe3 {[%clk 0:00:39.8]} 30...
Bg5 {[%clk 0:00:08.6]} 31. Re8+ {[%clk 0:00:38.5]} 31... Kg7 {[%clk 0:00:09]}
32. Qe5+ {[%clk 0:00:36.3]} 32... Qxe5 {[%clk 0:00:09.3]} 33. Rxe5 {[%clk
0:00:37.2]} 33... Rc8 {[%clk 0:00:03.4]} 34. Rg1 {[%clk 0:00:33.7]} 34... h6
{[%clk 0:00:03.4]} 35. f4 {[%clk 0:00:31.7]} 35... Rxh2+ {[%clk 0:00:03.3]} 36.
Kxh2 {[%clk 0:00:31.6]} 36... Bxf4+ {[%clk 0:00:04.2]} 37. Kg2 {[%clk
0:00:31.7]} 37... Bxe5 {[%clk 0:00:05.1]} 38. dxe5 {[%clk 0:00:32.4]} 38... Rd8
{[%clk 0:00:05.2]} 39. e6 {[%clk 0:00:30]} 39... Rd2+ {[%clk 0:00:04.3]} 40. Kf3
{[%clk 0:00:30.3]} 40... Rd3+ {[%clk 0:00:04.9]} 41. Ke4 {[%clk 0:00:30.5]}
41... Rd2 {[%clk 0:00:03]} 42. e7 {[%clk 0:00:30.1]} 42... Re2+ {[%clk
0:00:02.6]} 43. Kd5 {[%clk 0:00:30.2]} 43... h5 {[%clk 0:00:02.6]} 44. Rf1
{[%clk 0:00:29.7]} 44... h4 {[%clk 0:00:02.3]} 45. Rf8 {[%clk 0:00:28.1]} 45...
h3 {[%clk 0:00:02.3]} 46. e8=Q {[%clk 0:00:28.6]} 46... Rxe8 {[%clk 0:00:01.5]}
47. Rxe8 {[%clk 0:00:29.5]} 47... g5 {[%clk 0:00:02.2]} 48. Bd6 {[%clk
0:00:25.5]} 1-0

[Event "Early-Titled-Tuesday-Blitz-January-23-2024"]
[Site "Chess.com"]
[Date "2024.01.23"]
[Round "6"]
[White "Grischuk"]
[Black "ContrVersia"]
[Result "1-0"]
[WhiteElo "3077"]
[BlackElo "2845"]
[TimeControl "180+1"]
[EndTime "9:06:35 PST"]
[Termination "Grischuk won on time"]

1. d4 {[%clk 0:03:00.9]} 1... d5 {[%clk 0:02:52.1]} 2. Nf3 {[%clk 0:03:00.6]}
2... Nf6 {[%clk 0:02:51.4]} 3. Bg5 {[%clk 0:03:00.9]} 3... e6 {[%clk 0:02:50.2]}
4. Nbd2 {[%clk 0:03:00.6]} 4... Be7 {[%clk 0:02:50.5]} 5. e3 {[%clk 0:03:00.7]}
5... Nbd7 {[%clk 0:02:50.4]} 6. Bd3 {[%clk 0:02:56.1]} 6... b6 {[%clk
0:02:49.4]} 7. O-O {[%clk 0:02:54.4]} 7... Bb7 {[%clk 0:02:49.3]} 8. a4 {[%clk
0:02:33.2]} 8... c5 {[%clk 0:02:43.9]} 9. c3 {[%clk 0:02:33.3]} 9... O-O {[%clk
0:02:43.7]} 10. Qb1 {[%clk 0:02:31.7]} 10... h6 {[%clk 0:02:43.2]} 11. Bf4
{[%clk 0:02:31.1]} 11... a6 {[%clk 0:02:32.3]} 12. h3 {[%clk 0:02:30.2]} 12...
Rc8 {[%clk 0:02:29.8]} 13. b4 {[%clk 0:02:25.8]} 13... cxb4 {[%clk 0:02:29.3]}
14. cxb4 {[%clk 0:02:26.7]} 14... Rc3 {[%clk 0:02:26]} 15. Be2 {[%clk
0:02:18.1]} 15... Qa8 {[%clk 0:02:16.5]} 16. b5 {[%clk 0:01:52.9]} 16... a5
{[%clk 0:02:06.3]} 17. Qb2 {[%clk 0:01:52.1]} 17... Rfc8 {[%clk 0:02:05]} 18.
Rac1 {[%clk 0:01:40.4]} 18... Bb4 {[%clk 0:02:04.7]} 19. Rxc3 {[%clk 0:01:39.5]}
19... Bxc3 {[%clk 0:02:03.7]} 20. Qb1 {[%clk 0:01:36.1]} 20... Ne4 {[%clk
0:01:58.5]} 21. Nxe4 {[%clk 0:01:36.1]} 21... dxe4 {[%clk 0:01:56.6]} 22. Ne5
{[%clk 0:01:35.8]} 22... Nxe5 {[%clk 0:01:51.5]} 23. Bxe5 {[%clk 0:01:36.7]}
23... Bd5 {[%clk 0:01:49.3]} 24. Rc1 {[%clk 0:01:36.3]} 24... Bb4 {[%clk
0:01:34]} 25. Rc2 {[%clk 0:01:21.7]} 25... f6 {[%clk 0:01:26]} 26. Bg3 {[%clk
0:01:13.7]} 26... Ba3 {[%clk 0:01:20.9]} 27. h4 {[%clk 0:00:57.8]} 27... Kf8
{[%clk 0:01:15.6]} 28. h5 {[%clk 0:00:56.6]} 28... Ke8 {[%clk 0:01:11.8]} 29.
Bd1 {[%clk 0:00:35.1]} 29... Kd7 {[%clk 0:01:10.3]} 30. Rxc8 {[%clk 0:00:26.6]}
30... Qxc8 {[%clk 0:01:11.2]} 31. Bc2 {[%clk 0:00:27.2]} 31... Qa8 {[%clk
0:00:33.5]} 32. Qd1 {[%clk 0:00:23.8]} 32... Qc8 {[%clk 0:00:24.7]} 33. Qb1
{[%clk 0:00:23.1]} 33... Qa8 {[%clk 0:00:24.3]} 34. Bb3 {[%clk 0:00:19.6]} 34...
Bb4 {[%clk 0:00:17]} 35. Bxd5 {[%clk 0:00:14.7]} 35... Qxd5 {[%clk 0:00:17.9]}
36. Qd1 {[%clk 0:00:14.9]} 36... f5 {[%clk 0:00:11.5]} 37. Be5 {[%clk
0:00:14.1]} 37... Bf8 {[%clk 0:00:01.9]} 38. Qc2 {[%clk 0:00:13.8]} 38... Qb7
{[%clk 0:00:02.2]} 39. g3 {[%clk 0:00:09.9]} 39... Qc8 {[%clk 0:00:00.9]} 40.
Qb3 {[%clk 0:00:09.7]} 1-0

[Event "Early-Titled-Tuesday-Blitz-January-23-2024"]
[Site "Chess.com"]
[Date "2024.01.23"]
[Round "6"]
[White "Fandorine"]
[Black "Onischuk_V"]
[Result "1-0"]
[WhiteElo "2980"]
[BlackElo "2806"]
[TimeControl "180+1"]
[EndTime "9:06:37 PST"]
[Termination "Fandorine won on time"]

1. d4 {[%clk 0:03:00.9]} 1... d6 {[%clk 0:03:00]} 2. e4 {[%clk 0:02:56.8]} 2...
g6 {[%clk 0:02:59.5]} 3. Nc3 {[%clk 0:02:54.9]} 3... Bg7 {[%clk 0:02:59.4]} 4.
Be3 {[%clk 0:02:55.8]} 4... c6 {[%clk 0:02:58.6]} 5. Qd2 {[%clk 0:02:53.6]} 5...
Nd7 {[%clk 0:02:57.7]} 6. h4 {[%clk 0:02:50.1]} 6... h6 {[%clk 0:02:55.6]} 7. g4
{[%clk 0:02:36]} 7... Ngf6 {[%clk 0:02:47.3]} 8. f3 {[%clk 0:02:33.6]} 8... b5
{[%clk 0:02:45.9]} 9. Nge2 {[%clk 0:02:28]} 9... Qc7 {[%clk 0:02:31.1]} 10. Ng3
{[%clk 0:02:24]} 10... Nb6 {[%clk 0:02:10.2]} 11. a4 {[%clk 0:02:12]} 11... Nc4
{[%clk 0:02:06.2]} 12. Bxc4 {[%clk 0:02:11.3]} 12... bxc4 {[%clk 0:02:06.3]} 13.
Kf2 {[%clk 0:02:06.8]} 13... Rb8 {[%clk 0:02:02.9]} 14. g5 {[%clk 0:02:04.1]}
14... hxg5 {[%clk 0:01:49.6]} 15. hxg5 {[%clk 0:02:05]} 15... Rxh1 {[%clk
0:01:48.3]} 16. Rxh1 {[%clk 0:02:05.9]} 16... Nd7 {[%clk 0:01:41.8]} 17. Nd1
{[%clk 0:01:57.9]} 17... Nf8 {[%clk 0:01:36.7]} 18. Qc3 {[%clk 0:01:42.6]} 18...
Ba6 {[%clk 0:01:24.7]} 19. Qa3 {[%clk 0:01:35.8]} 19... Qb6 {[%clk 0:01:21.8]}
20. c3 {[%clk 0:01:27.6]} 20... Qa5 {[%clk 0:01:21.6]} 21. Ne2 {[%clk
0:01:16.8]} 21... Rb3 {[%clk 0:01:20.1]} 22. Qa1 {[%clk 0:01:17.5]} 22... Bc8
{[%clk 0:01:14.6]} 23. Bc1 {[%clk 0:01:12.4]} 23... Rb6 {[%clk 0:01:09.7]} 24.
Ne3 {[%clk 0:01:10.6]} 24... Ra6 {[%clk 0:01:04.9]} 25. Nxc4 {[%clk 0:01:04.2]}
25... Qxa4 {[%clk 0:01:05.5]} 26. Qxa4 {[%clk 0:01:03.6]} 26... Rxa4 {[%clk
0:01:05.6]} 27. Na3 {[%clk 0:00:59.7]} 27... Be6 {[%clk 0:01:00.6]} 28. Ng3
{[%clk 0:00:45.8]} 28... Nd7 {[%clk 0:00:58.8]} 29. f4 {[%clk 0:00:44.5]} 29...
Nb6 {[%clk 0:00:56.7]} 30. f5 {[%clk 0:00:43.1]} 30... Bb3 {[%clk 0:00:55.5]}
31. Ne2 {[%clk 0:00:28.9]} 31... c5 {[%clk 0:00:42.6]} 32. Be3 {[%clk
0:00:25.9]} 32... Nc4 {[%clk 0:00:37.1]} 33. Nxc4 {[%clk 0:00:25.3]} 33... Bxc4
{[%clk 0:00:36.7]} 34. dxc5 {[%clk 0:00:19.8]} 34... Bxe2 {[%clk 0:00:23.2]} 35.
Kxe2 {[%clk 0:00:19.4]} 35... Rxe4 {[%clk 0:00:23.8]} 36. fxg6 {[%clk
0:00:15.4]} 36... dxc5 {[%clk 0:00:21.3]} 37. Kf3 {[%clk 0:00:10.6]} 37... f5
{[%clk 0:00:13.9]} 38. Rh7 {[%clk 0:00:06.5]} 38... Kf8 {[%clk 0:00:13.2]} 39.
Bxc5 {[%clk 0:00:07.2]} 39... a5 {[%clk 0:00:10.3]} 40. Ba3 {[%clk 0:00:06.3]}
40... a4 {[%clk 0:00:10.1]} 41. Rh1 {[%clk 0:00:06.1]} 41... Ke8 {[%clk
0:00:02.3]} 42. Rd1 {[%clk 0:00:05.1]} 1-0

[Event "Early-Titled-Tuesday-Blitz-January-23-2024"]
[Site "Chess.com"]
[Date "2024.01.23"]
[Round "6"]
[White "viktorskliarov"]
[Black "K_A_S_T_O_R"]
[Result "0-1"]
[WhiteElo "2662"]
[BlackElo "2888"]
[TimeControl "180+1"]
[EndTime "9:06:37 PST"]
[Termination "K_A_S_T_O_R won by resignation"]

1. e4 {[%clk 0:02:56.8]} 1... c5 {[%clk 0:02:59.8]} 2. Nf3 {[%clk 0:02:56.7]}
2... d6 {[%clk 0:03:00.2]} 3. d4 {[%clk 0:02:56.3]} 3... cxd4 {[%clk 0:03:00.5]}
4. Qxd4 {[%clk 0:02:56.2]} 4... Bd7 {[%clk 0:02:59.2]} 5. c4 {[%clk 0:02:54.3]}
5... Nc6 {[%clk 0:02:59.6]} 6. Qd2 {[%clk 0:02:53.1]} 6... g6 {[%clk 0:02:58.5]}
7. b3 {[%clk 0:02:52]} 7... Bh6 {[%clk 0:02:52.2]} 8. Qc3 {[%clk 0:02:50.4]}
8... Qa5 {[%clk 0:02:49.3]} 9. Bxh6 {[%clk 0:02:20.4]} 9... Qxc3+ {[%clk
0:02:40.7]} 10. Nxc3 {[%clk 0:02:21.3]} 10... Nxh6 {[%clk 0:02:41.1]} 11. Nd5
{[%clk 0:02:16.1]} 11... Rc8 {[%clk 0:02:39.3]} 12. h3 {[%clk 0:02:15.1]} 12...
e6 {[%clk 0:02:27.9]} 13. Ne3 {[%clk 0:01:29]} 13... Ke7 {[%clk 0:02:26.3]} 14.
g4 {[%clk 0:01:22.4]} 14... f6 {[%clk 0:02:25.9]} 15. Rd1 {[%clk 0:01:16.1]}
15... Nf7 {[%clk 0:02:25.8]} 16. Be2 {[%clk 0:01:09.8]} 16... Nfe5 {[%clk
0:02:24.2]} 17. Nd4 {[%clk 0:01:08.1]} 17... Nxd4 {[%clk 0:02:22.5]} 18. Rxd4
{[%clk 0:01:07.4]} 18... g5 {[%clk 0:02:22.7]} 19. h4 {[%clk 0:00:52.6]} 19...
h6 {[%clk 0:02:20.1]} 20. f3 {[%clk 0:00:31.3]} 20... Bc6 {[%clk 0:02:18.7]} 21.
Kf2 {[%clk 0:00:29.4]} 21... Ng6 {[%clk 0:02:15.4]} 22. h5 {[%clk 0:00:27.2]}
22... Ne5 {[%clk 0:02:15.2]} 23. Rhd1 {[%clk 0:00:26.2]} 23... Rhd8 {[%clk
0:02:15.7]} 24. Nc2 {[%clk 0:00:23.7]} 24... b6 {[%clk 0:02:14.6]} 25. Nb4
{[%clk 0:00:21.8]} 25... Bb7 {[%clk 0:02:14.2]} 26. Ke3 {[%clk 0:00:20.9]} 26...
a5 {[%clk 0:02:03.4]} 27. Nc2 {[%clk 0:00:20.4]} 27... b5 {[%clk 0:01:58.8]} 28.
Na3 {[%clk 0:00:18.2]} 28... bxc4 {[%clk 0:01:44.3]} 29. Nxc4 {[%clk 0:00:18.5]}
29... Nxc4+ {[%clk 0:01:39.4]} 30. Bxc4 {[%clk 0:00:19.4]} 30... Bc6 {[%clk
0:01:39]} 31. R4d2 {[%clk 0:00:12]} 31... Rb8 {[%clk 0:01:33.9]} 32. f4 {[%clk
0:00:10.4]} 32... gxf4+ {[%clk 0:01:31.3]} 33. Kxf4 {[%clk 0:00:11.3]} 33... Rd7
{[%clk 0:01:31.7]} 34. Ke3 {[%clk 0:00:09]} 34... Rg8 {[%clk 0:01:31.1]} 35. Kf4
{[%clk 0:00:08.3]} 35... Rg5 {[%clk 0:01:29.6]} 36. a3 {[%clk 0:00:08.4]} 36...
Rd8 {[%clk 0:01:26.9]} 37. b4 {[%clk 0:00:08.1]} 37... axb4 {[%clk 0:01:26.7]}
38. axb4 {[%clk 0:00:09]} 38... Re5 {[%clk 0:01:25.2]} 39. Rd4 {[%clk
0:00:06.7]} 39... Rd7 {[%clk 0:01:18.4]} 40. Rb1 {[%clk 0:00:05.6]} 40... Rb7
{[%clk 0:01:15.9]} 41. b5 {[%clk 0:00:05.3]} 41... Bxb5 {[%clk 0:01:14.4]} 42.
Bd3 {[%clk 0:00:05.3]} 42... Kd7 {[%clk 0:01:10.6]} 43. Rdb4 {[%clk 0:00:04.9]}
43... Kc6 {[%clk 0:01:10.8]} 44. Rc1+ {[%clk 0:00:03.9]} 44... Rc5 {[%clk
0:01:10.9]} 45. Rcb1 {[%clk 0:00:04.2]} 45... Rb6 {[%clk 0:00:56.2]} 46. Ke3
{[%clk 0:00:03.8]} 46... Rc3 {[%clk 0:00:51.2]} 47. Rxb5 {[%clk 0:00:03]} 47...
Rxb5 {[%clk 0:00:51.1]} 48. Rxb5 {[%clk 0:00:03]} 48... Rxd3+ {[%clk 0:00:50.3]}
49. Kxd3 {[%clk 0:00:03.5]} 49... Kxb5 {[%clk 0:00:50.9]} 50. e5 {[%clk
0:00:04.3]} 50... dxe5 {[%clk 0:00:50.2]} 51. Ke4 {[%clk 0:00:04.3]} 51... Kc6
{[%clk 0:00:48.6]} 52. g5 {[%clk 0:00:04.8]} 52... fxg5 {[%clk 0:00:48.9]} 53.
Kxe5 {[%clk 0:00:05.4]} 53... Kd7 {[%clk 0:00:46.7]} 54. Kf6 {[%clk 0:00:06]}
54... g4 {[%clk 0:00:47.2]} 55. Kg6 {[%clk 0:00:06.8]} 55... g3 {[%clk
0:00:47.6]} 56. Kxh6 {[%clk 0:00:07.5]} 56... g2 {[%clk 0:00:48.1]} 57. Kh7
{[%clk 0:00:08.2]} 57... g1=Q {[%clk 0:00:48.5]} 58. h6 {[%clk 0:00:08.9]} 58...
Qg5 {[%clk 0:00:48.5]} 0-1